bitfinex/quotes_BTCUSD_20250109
["timestamp","ask_amount","ask_price","bid_price","bid_amount"]
[1736421820676,0.58376541,93870.0,93869.0,1.4e-07]
[1736421821080,0.37268256,93868.0,93859.0,0.1]
[1736421821307,3.80277908,93868.0,93859.0,0.1]
[1736421821768,3.82578112,93868.0,93859.0,0.1]
[1736421821939,4.04265276,93868.0,93859.0,0.1]
[1736421822579,3.90431759,93868.0,93867.0,4e-07]
[1736421822779,0.68282059,93868.0,93867.0,4e-07]
[1736421823215,0.62300972,93868.0,93867.0,4e-07]
[1736421823425,0.62600972,93868.0,93867.0,4e-07]
[1736421825116,0.46276556,93860.0,93859.0,0.1]
[1736421825296,4.35736291,93860.0,93859.0,0.00087179]
[1736421825469,4.35736291,93860.0,93833.0,0.0001702]
[1736421825470,0.213135,93837.0,93833.0,0.0760702]
[1736421825669,0.213135,93837.0,93836.0,0.00031974]
[1736421826082,3.434632,93837.0,93836.0,0.00031974]
[1736421826645,3.584632,93837.0,93836.0,0.00031974]
[1736421826850,3.73496624,93837.0,93836.0,0.00031974]
[1736421827060,4.21672734,93837.0,93836.0,0.00031974]
[1736421827463,4.19369286,93837.0,93836.0,0.00031974]
[1736421827934,4.19469286,93837.0,93836.0,0.00031974]
[1736421828138,4.19369286,93837.0,93836.0,0.00031974]
[1736421828538,4.19869286,93837.0,93836.0,0.00031974]
[1736421828816,4.19769286,93837.0,93836.0,0.00031974]
[1736421829020,4.17469286,93837.0,93836.0,0.00031974]
[1736421829193,3.591632,93837.0,93836.0,0.00031974]
[1736421829395,3.60936863,93837.0,93836.0,0.00031974]
[1736421829596,3.66496863,93837.0,93836.0,0.00031974]
[1736421829800,0.60087163,93837.0,93836.0,0.13161974]
[1736421830006,0.60287163,93837.0,93836.0,0.13161974]
[1736421830244,0.34387163,93837.0,93836.0,0.13161974]
[1736421830871,0.42088429,93837.0,93836.0,0.13161974]
[1736421831292,0.41588429,93837.0,93836.0,0.13161974]
[1736421831710,0.41788429,93837.0,93836.0,0.08351974]
[1736421831919,0.41388429,93837.0,93836.0,0.08351974]
[1736421832401,0.41588429,93837.0,93836.0,0.08451974]
[1736421832572,0.41588429,93837.0,93836.0,0.08351974]
[1736421832781,0.41388429,93837.0,93836.0,0.08351974]
[1736421833971,0.41388429,93837.0,93836.0,0.08451974]
[1736421834644,0.33687163,93837.0,93836.0,0.08451974]
[1736421838802,0.36587163,93837.0,93836.0,0.08451974]
[1736421839002,0.23087163,93837.0,93836.0,0.08451974]
[1736421839200,0.56587163,93837.0,93836.0,0.08451974]
[1736421839546,0.56787163,93837.0,93836.0,0.08451974]
[1736421839853,0.43187163,93837.0,93836.0,0.08451974]
[1736421840055,0.41487163,93837.0,93836.0,0.08451974]
[1736421840303,0.40187163,93837.0,93836.0,0.08451974]
[1736421840507,0.40187163,93837.0,93836.0,0.13331974]
[1736421840508,0.01773663,93837.0,93836.0,0.13331974]
[1736421840686,0.213132,93839.0,93836.0,0.13331974]
[1736421840888,0.28344241,93839.0,93836.0,0.13331974]
[1736421841488,0.49657441,93839.0,93836.0,0.13331974]
[1736421841874,0.49757441,93839.0,93836.0,0.13231974]
[1736421842485,0.49757441,93839.0,93836.0,0.08351974]
[1736421842486,0.213135,93837.0,93836.0,0.08351974]
[1736421842909,3.434632,93837.0,93836.0,0.08351974]
[1736421843069,3.53893176,93837.0,93836.0,0.08351974]
[1736421843274,3.53893176,93837.0,93836.0,0.00031974]
[1736421844064,3.53893176,93837.0,93836.0,0.00131974]
[1736421844217,0.213135,93837.0,93836.0,0.00131974]
[1736421844974,0.213135,93837.0,93836.0,0.08301974]
[1736421845395,0.213135,93837.0,93836.0,0.08201974]
[1736421845927,0.214135,93837.0,93836.0,0.08201974]
[1736421846098,0.27989348,93837.0,93836.0,0.08201974]
[1736421847204,0.214135,93837.0,93836.0,0.08201974]
[1736421847446,0.213135,93837.0,93836.0,0.08601974]
[1736421847834,0.214135,93837.0,93836.0,0.08601974]
[1736421848191,0.213135,93837.0,93836.0,0.08201974]
[1736421848411,0.213135,93837.0,93836.0,0.08601974]
[1736421848779,0.213135,93837.0,93836.0,0.08701974]
[1736421848780,3.50029048,93837.0,93836.0,0.08701974]
[1736421849170,3.50029048,93837.0,93836.0,0.08601974]
[1736421849325,3.50029048,93837.0,93836.0,0.08701974]
[1736421850324,3.50029048,93837.0,93836.0,0.00131974]
[1736421850496,3.50029048,93837.0,93836.0,0.00531974]
[1736421850722,3.50029048,93837.0,93836.0,0.00431974]
[1736421851037,3.50029048,93837.0,93836.0,0.00131974]
[1736421852358,3.50029048,93837.0,93836.0,0.00531974]
[1736421852557,3.50029048,93837.0,93836.0,0.00431974]
[1736421853615,3.50029048,93837.0,93836.0,0.00031974]
[1736421854067,3.50129048,93837.0,93836.0,0.00031974]
[1736421854700,3.50129048,93837.0,93836.0,0.00331974]
[1736421854911,3.434632,93837.0,93836.0,0.00331974]
[1736421855118,0.817135,93837.0,93836.0,0.00331974]
[1736421860687,0.10490973,93846.0,93839.0,0.00031744]
[1736421860897,0.213114,93847.0,93843.0,0.00031744]
[1736421861101,0.01591299,93848.0,93844.0,0.082]
[1736421861520,0.01591299,93848.0,93845.0,0.00031744]
[1736421861721,0.213096,93854.0,93845.0,0.00031744]
[1736421861930,0.01616444,93851.0,93845.0,0.00031744]
[1736421862145,0.213096,93854.0,93845.0,0.00031744]
[1736421862350,0.213101,93852.0,93845.0,0.00031744]
[1736421862573,0.001,93848.0,93845.0,0.00031744]
[1736421863910,0.213101,93852.0,93845.0,0.00031744]
[1736421864359,0.001,93848.0,93846.0,0.0822]
[1736421865071,0.001,93848.0,93847.0,0.00031744]
[1736421865274,0.22902517,93854.0,93847.0,0.00031744]
[1736421865422,0.22902517,93854.0,93848.0,0.0822]
[1736421865630,0.28372716,93854.0,93848.0,0.0822]
[1736421866375,0.213077,93863.0,93853.0,0.00031744]
[1736421866577,0.213077,93863.0,93855.0,0.049]
[1736421866751,0.213086,93859.0,93855.0,0.049]
[1736421867975,0.213086,93859.0,93855.0,0.05]
[1736421868208,0.213086,93859.0,93855.0,0.049]
[1736421868609,0.213086,93859.0,93855.0,0.051]
[1736421868848,0.0426165,93858.0,93855.0,0.051]
[1736421869854,0.0426165,93858.0,93855.0,0.049]
[1736421870071,0.0426165,93858.0,93855.0,0.05]
[1736421870533,0.0426165,93858.0,93855.0,0.049]
[1736421870737,0.04837187,93857.0,93855.0,0.051]
[1736421871191,0.04837187,93857.0,93855.0,0.052]
[1736421871714,0.04837187,93857.0,93855.0,0.051]
[1736421871923,0.04837187,93857.0,93855.0,0.052]
[1736421872779,0.213079,93862.0,93855.0,0.05]
[1736421873073,0.213078,93863.0,93855.0,0.05]
[1736421873229,0.213078,93863.0,93855.0,0.053]
[1736421874070,0.213078,93863.0,93855.0,0.049]
[1736421874555,0.213078,93863.0,93855.0,0.05]
[1736421875717,0.22770005,93863.0,93855.0,0.05]
[1736421876323,0.01462205,93863.0,93855.0,0.05]
[1736421876739,0.213067,93867.0,93855.0,0.05]
[1736421877100,0.426135,93867.0,93855.0,0.05]
[1736421877322,0.31797073,93870.0,93859.0,0.213083]
[1736421877521,0.33300957,93870.0,93860.0,0.0812]
[1736421877843,0.001,93867.0,93860.0,0.0812]
[1736421878043,0.002,93867.0,93860.0,0.0812]
[1736421878248,0.001,93867.0,93860.0,0.0812]
[1736421879179,0.214069,93867.0,93860.0,0.0812]
[1736421879417,0.213069,93867.0,93860.0,0.0812]
[1736421880131,0.213069,93867.0,93860.0,0.0862]
[1736421880337,0.54606957,93870.0,93860.0,0.0862]
[1736421880537,0.54606957,93870.0,93860.0,0.0832]
[1736421880816,0.001,93867.0,93860.0,0.0892]
[1736421880963,0.001,93867.0,93860.0,0.0872]
[1736421881403,0.001,93867.0,93860.0,0.0892]
[1736421881607,0.213069,93866.0,93860.0,0.0892]
[1736421881903,0.213069,93866.0,93860.0,0.0872]
[1736421882272,0.213069,93866.0,93860.0,0.0892]
[1736421882475,0.213069,93866.0,93860.0,0.0832]
[1736421882850,0.213069,93866.0,93860.0,0.0882]
[1736421883070,0.213069,93866.0,93860.0,0.0832]
[1736421883454,0.214069,93866.0,93860.0,0.0872]
[1736421883655,0.213069,93866.0,93860.0,0.0812]
[1736421884039,0.213069,93866.0,93860.0,0.0882]
[1736421884668,0.21278669,93866.0,93860.0,0.0862]
[1736421885067,0.21278669,93866.0,93860.0,0.0882]
[1736421885962,0.11994857,93870.0,93860.0,0.514366]
[1736421886370,0.11994857,93870.0,93860.0,0.301283]
[1736421886571,0.11982034,93870.0,93860.0,0.299283]
[1736421886872,0.11994857,93870.0,93860.0,0.301283]
[1736421887114,0.01503884,93870.0,93866.0,0.00031744]
[1736421887487,0.213052,93874.0,93866.0,0.00031744]
[1736421888053,0.213053,93873.0,93866.0,0.00031744]
[1736421888617,0.213053,93873.0,93866.0,0.00131744]
[1736421889786,0.213053,93873.0,93866.0,0.00531744]
[1736421889986,0.213053,93873.0,93866.0,0.00431744]
[1736421890288,0.213053,93873.0,93866.0,0.00031744]
[1736421890589,0.213053,93873.0,93866.0,0.00231744]
[1736421891431,0.213063,93869.0,93866.0,0.00231744]
[1736421891637,0.213053,93873.0,93866.0,0.00231744]
[1736421892674,0.213053,93873.0,93866.0,0.00031744]
[1736421892901,0.213053,93873.0,93866.0,0.00431744]
[1736421893293,0.213053,93873.0,93866.0,0.00031744]
[1736421893487,0.213062,93870.0,93866.0,0.00031744]
[1736421893666,0.213062,93870.0,93866.0,0.00331744]
[1736421894269,0.213062,93870.0,93866.0,0.00031744]
[1736421895733,0.213062,93870.0,93866.0,0.00431744]
[1736421896532,0.213062,93870.0,93866.0,0.00531744]
[1736421900200,0.213062,93870.0,93866.0,0.00431744]
[1736421900607,0.01526105,93874.0,93866.0,0.1056172]
[1736421900768,0.213047,93876.0,93868.0,0.0797]
[1736421901390,0.22836465,93876.0,93868.0,0.0797]
[1736421901778,0.213056,93872.0,93868.0,0.0797]
[1736421903449,0.213056,93872.0,93868.0,0.0817]
[1736421903655,0.213049,93875.0,93868.0,0.0817]
[1736421904010,0.213051,93874.0,93868.0,0.0817]
[1736421905062,0.213051,93874.0,93869.0,0.0463]
[1736421905663,0.36592918,93880.0,93869.0,0.0463]
[1736421905894,0.08086368,93880.0,93873.0,0.00031744]
[1736421906097,0.01204618,93880.0,93874.0,0.083]
[1736421906293,0.213024,93886.0,93877.0,0.00031744]
[1736421906521,0.213031,93883.0,93877.0,0.00031744]
[1736421908287,0.0688175,93884.0,93877.0,0.00031744]
[1736421908507,0.213031,93883.0,93877.0,0.00031744]
[1736421908708,0.21304,93879.0,93877.0,0.00031744]
[1736421909120,0.213031,93883.0,93874.0,0.083]
[1736421909324,0.213045,93877.0,93873.0,0.00031744]
[1736421909732,0.213045,93877.0,93869.0,0.12721744]
[1736421909935,0.213057,93872.0,93869.0,0.12721744]
[1736421911183,0.21305,93875.0,93869.0,0.12721744]
[1736421911595,0.21304,93879.0,93869.0,0.12821744]
[1736421912114,0.009,93877.0,93869.0,0.12921744]
[1736421912725,0.21304,93879.0,93869.0,0.12821744]
[1736421912928,0.213049,93875.0,93869.0,0.37721744]
[1736421915955,0.01839752,93886.0,93877.0,0.07531744]
[1736421916175,8.53e-05,93889.0,93878.0,0.213042]
[1736421916391,0.213019,93888.0,93878.0,0.213042]
[1736421916600,0.213019,93888.0,93877.0,0.07531744]
[1736421916806,8.53e-05,93889.0,93880.0,0.00031744]
[1736421917022,0.213019,93888.0,93880.0,0.1046172]
[1736421917680,0.213028,93885.0,93880.0,0.1046172]
[1736421917855,0.213028,93885.0,93880.0,0.10429976]
[1736421918399,0.213028,93885.0,93880.0,0.1046172]
[1736421918621,0.214019,93888.0,93880.0,0.1046172]
[1736421919082,0.214019,93888.0,93880.0,0.1056172]
[1736421919286,0.214019,93888.0,93880.0,0.1046172]
[1736421919687,0.214019,93888.0,93880.0,0.1056172]
[1736421919688,0.009,93885.0,93880.0,0.1056172]
[1736421919894,0.213019,93888.0,93880.0,0.1046172]
[1736421920334,0.001,93885.0,93880.0,0.1056172]
[1736421920512,0.001,93885.0,93880.0,0.1046172]
[1736421920744,0.222019,93888.0,93880.0,0.1046172]
[1736421920954,0.435038,93888.0,93880.0,0.1046172]
[1736421921157,0.436038,93888.0,93880.0,0.1046172]
[1736421921509,0.213031,93883.0,93880.0,0.10429976]
[1736421921710,0.213031,93883.0,93877.0,0.075]
[1736421921915,0.213031,93883.0,93880.0,0.001]
[1736421922313,0.213031,93883.0,93877.0,0.17929976]
[1736421922486,0.213031,93883.0,93880.0,0.001]
[1736421922824,0.213031,93883.0,93877.0,0.1796172]
[1736421923351,0.01,93883.0,93880.0,0.001]
[1736421923558,0.213033,93882.0,93880.0,0.001]
[1736421924407,0.01867655,93881.0,93880.0,0.001]
[1736421924847,0.213033,93882.0,93880.0,0.001]
[1736421925469,0.213051,93874.0,93869.0,0.3316]
[1736421925677,0.21306,93870.0,93869.0,0.3316]
[1736421925886,0.213043,93878.0,93877.0,0.001]
[1736421926127,0.213054,93873.0,93869.0,0.25]
[1736421927420,0.213054,93873.0,93869.0,0.251]
[1736421928975,0.23863438,93873.0,93869.0,0.252]
[1736421930779,0.213058,93871.0,93869.0,0.252]
[1736421930980,3.371497,93870.0,93869.0,0.252]
[1736421931595,3.371497,93870.0,93869.0,0.251]
[1736421932342,3.371497,93870.0,93869.0,0.252]
[1736421932555,3.371497,93870.0,93869.0,0.251]
[1736421932740,3.45360365,93870.0,93869.0,0.251]
[1736421932898,3.46260365,93870.0,93869.0,0.252]
[1736421933096,3.45360365,93870.0,93869.0,0.251]
[1736421933469,3.380497,93870.0,93869.0,0.251]
[1736421933671,3.382497,93870.0,93869.0,0.251]
[1736421933878,3.373497,93870.0,93869.0,0.25]
[1736421934080,3.371497,93870.0,93869.0,0.25]
[1736421934306,3.371397,93870.0,93869.0,0.25]
[1736421934492,3.373397,93870.0,93869.0,0.25]
[1736421935127,3.382397,93870.0,93869.0,0.251]
[1736421935545,3.373397,93870.0,93869.0,0.25]
[1736421935943,3.382397,93870.0,93869.0,0.251]
[1736421936177,3.094382,93870.0,93869.0,0.251]
[1736421936368,3.092382,93870.0,93869.0,0.251]
[1736421936866,3.094382,93870.0,93869.0,0.251]
[1736421937693,3.0940997,93870.0,93869.0,0.251]
[1736421939137,3.1170997,93870.0,93869.0,0.251]
[1736421939339,3.83436656,93870.0,93869.0,0.22334429]
[1736421939546,4.05384886,93870.0,93869.0,0.22234429]
[1736421939786,4.15384886,93870.0,93869.0,0.22234429]
[1736421939997,4.26914862,93870.0,93869.0,0.22334429]
[1736421940199,4.26014862,93870.0,93869.0,0.22234429]
[1736421940434,4.25814862,93870.0,93869.0,0.22234429]
[1736421940642,4.15384886,93870.0,93869.0,0.22234429]
[1736421940852,4.15584886,93870.0,93869.0,0.22234429]
[1736421941535,4.17254953,93870.0,93869.0,0.22234429]
[1736421941744,4.31623173,93870.0,93869.0,0.22234429]
[1736421941946,4.32523173,93870.0,93869.0,0.22234429]
[1736421942154,4.42953149,93870.0,93869.0,0.22234429]
[1736421942741,4.28584929,93870.0,93869.0,0.22234429]
[1736421944189,4.26914862,93870.0,93869.0,0.22234429]
[1736421944773,4.16484886,93870.0,93869.0,0.22234429]
[1736421944935,4.06484886,93870.0,93869.0,0.22234429]
[1736421945359,4.16484886,93870.0,93869.0,0.22234429]
[1736421946192,1.08146686,93870.0,93869.0,0.22234429]
[1736421946395,4.16484886,93870.0,93869.0,0.22234429]
[1736421946643,4.26914862,93870.0,93869.0,0.22234429]
[1736421948454,0.363074,93864.0,93863.0,0.00100228]
[1736421948658,3.469456,93864.0,93863.0,0.00100228]
[1736421949071,3.48814154,93864.0,93863.0,0.00100228]
[1736421949938,3.48914154,93864.0,93863.0,0.00100228]
[1736421950157,3.51490016,93864.0,93863.0,0.00100228]
[1736421951124,3.51462155,93864.0,93863.0,0.00100228]
[1736421952635,3.89570387,93864.0,93863.0,0.00100228]
[1736421952836,3.90976426,93864.0,93863.0,0.00100228]
[1736421953019,3.80976426,93864.0,93863.0,0.00100228]
[1736421953516,3.80876426,93864.0,93863.0,0.00100228]
[1736421953694,3.91276426,93864.0,93863.0,0.00100228]
[1736421955301,3.4828305,93837.0,93836.0,0.0001702]
[1736421956638,3.183135,93837.0,93836.0,0.0001702]
[1736421956847,3.174135,93837.0,93836.0,0.0001702]
[1736421957252,0.213135,93837.0,93836.0,0.1309702]
[1736421957473,0.009,93837.0,93836.0,0.1309702]
[1736421957681,0.01,93837.0,93836.0,0.1309702]
[1736421958451,0.0536252,93837.0,93836.0,0.1309702]
[1736421958758,0.0446252,93837.0,93836.0,0.1309702]
[1736421958967,0.07747075,93837.0,93836.0,0.1309702]
[1736421959284,0.06747075,93837.0,93836.0,0.1309702]
[1736421959419,0.06847075,93837.0,93836.0,0.1309702]
[1736421959828,0.06747075,93837.0,93836.0,0.1309702]
[1736421960029,0.07647075,93837.0,93836.0,0.1309702]
[1736421960258,0.07647075,93837.0,93836.0,0.1319702]
[1736421960624,0.06747075,93837.0,93836.0,0.1319702]
[1736421960796,0.06747075,93837.0,93836.0,0.1309702]
[1736421961005,0.06847075,93837.0,93836.0,0.1309702]
[1736421961749,0.07747075,93837.0,93836.0,0.1309702]
[1736421962322,0.06747075,93837.0,93836.0,0.1309702]
[1736421962727,0.07747075,93837.0,93836.0,0.1309702]
[1736421962949,0.03384555,93837.0,93836.0,0.1309702]
[1736421963255,0.02384555,93837.0,93836.0,0.1309702]
[1736421963445,0.01,93837.0,93836.0,0.1309702]
[1736421963855,0.426262,93839.0,93836.0,0.1309702]
[1736421964000,0.213135,93837.0,93836.0,0.1309702]
[1736421964197,0.001,93837.0,93836.0,0.1309702]
[1736421964648,0.06111105,93837.0,93836.0,0.1309702]
[1736421965065,0.07011105,93837.0,93836.0,0.1309702]
[1736421965518,0.009,93837.0,93836.0,0.1309702]
[1736421966157,0.009,93837.0,93836.0,0.2355874]
[1736421966370,0.10484127,93860.0,93843.0,0.00031744]
[1736421966626,0.10484127,93860.0,93836.0,0.10446996]
[1736421966627,0.02307577,93855.0,93852.0,0.0781]
[1736421966834,5.826e-05,93864.0,93854.0,0.213096]
[1736421967049,5.826e-05,93864.0,93857.0,0.213087]
[1736421967260,0.10427612,93870.0,93858.0,0.0787]
[1736421967476,0.723,93869.0,93858.0,0.0787]
[1736421967676,0.002,93860.0,93858.0,0.0787]
[1736421968842,0.213067,93867.0,93858.0,0.0787]
[1736421969036,0.006,93860.0,93858.0,0.0787]
[1736421970946,0.006,93860.0,93858.0,0.0797]
[1736421971105,0.0519077,93859.0,93858.0,0.0797]
[1736421971523,0.2649927,93859.0,93858.0,0.0797]
[1736421972080,0.2649927,93859.0,93858.0,0.0787]
[1736421972285,0.213101,93852.0,93851.0,0.077]
[1736421972512,0.28222027,93852.0,93851.0,0.077]
[1736421973430,0.28222027,93852.0,93851.0,0.08]
[1736421974016,0.213101,93852.0,93851.0,0.08]
[1736421974376,0.216101,93852.0,93851.0,0.08]
[1736421974638,0.216101,93852.0,93851.0,0.003]
[1736421974970,3.299483,93852.0,93851.0,0.003]
[1736421975175,3.449483,93852.0,93851.0,0.003]
[1736421975301,3.55378276,93852.0,93851.0,0.003]
[1736421975512,0.15,93851.0,93850.0,0.00014954]
[1736421975719,3.233382,93851.0,93850.0,0.00014954]
[1736421975963,4.03733798,93851.0,93850.0,0.00014954]
[1736421976216,4.08523798,93851.0,93850.0,0.00014954]
[1736421976437,4.21621522,93851.0,93850.0,0.00014954]
[1736421976816,4.22521522,93851.0,93850.0,0.00014954]
[1736421977115,4.21621522,93851.0,93850.0,0.00014954]
[1736421977331,4.32521522,93851.0,93850.0,0.00014954]
[1736421977631,4.50739456,93851.0,93850.0,0.00014954]
[1736421978286,4.31621522,93851.0,93850.0,0.00014954]
[1736421978693,4.31921522,93851.0,93850.0,0.00014954]
[1736421979091,4.32821522,93851.0,93850.0,0.00014954]
[1736421979432,4.51939456,93851.0,93850.0,5.4e-07]
[1736421979636,1.38511256,93851.0,93850.0,5.4e-07]
[1736421979839,1.43631256,93851.0,93850.0,5.4e-07]
[1736421980144,1.49310739,93851.0,93850.0,5.4e-07]
[1736421980383,1.48110739,93851.0,93850.0,5.4e-07]
[1736421980741,1.49010739,93851.0,93850.0,5.4e-07]
[1736421982011,1.25413322,93851.0,93850.0,5.4e-07]
[1736421982620,1.00733322,93851.0,93850.0,5.4e-07]
[1736421982830,0.94255598,93851.0,93850.0,5.4e-07]
[1736421983003,0.94755598,93851.0,93850.0,0.00100054]
[1736421983203,0.93855598,93851.0,93850.0,0.00100054]
[1736421983409,4.02593798,93851.0,93850.0,5.4e-07]
[1736421983628,1.15082829,93851.0,93850.0,5.4e-07]
[1736421983866,1.25112805,93851.0,93850.0,0.00100054]
[1736421984050,4.34351005,93851.0,93850.0,0.00100054]
[1736421984255,4.13523774,93851.0,93850.0,0.00100054]
[1736421984475,4.03093798,93851.0,93850.0,0.00100054]
[1736421985036,4.02593798,93851.0,93850.0,5.4e-07]
[1736421985236,0.94255598,93851.0,93850.0,5.4e-07]
[1736421985442,0.94655598,93851.0,93850.0,5.4e-07]
[1736421985985,0.93755598,93851.0,93850.0,5.4e-07]
[1736421986197,1.04185574,93851.0,93850.0,5.4e-07]
[1736421986416,1.05085574,93851.0,93850.0,5.4e-07]
[1736421986602,1.03216988,93851.0,93850.0,5.4e-07]
[1736421988639,1.17584762,93851.0,93850.0,5.4e-07]
[1736421989621,1.03216988,93851.0,93850.0,5.4e-07]
[1736421991879,1.17582568,93851.0,93850.0,5.4e-07]
[1736421992847,0.3066558,93851.0,93850.0,5.4e-07]
[1736421993431,0.20270379,93851.0,93850.0,5.4e-07]
[1736421994154,0.19370379,93851.0,93850.0,5.4e-07]
[1736421994413,0.657688,93851.0,93850.0,5.4e-07]
[1736421995585,0.653688,93851.0,93850.0,5.4e-07]
[1736421996122,0.666688,93851.0,93850.0,5.4e-07]
[1736421996425,0.77098776,93851.0,93850.0,5.4e-07]
[1736421998493,0.78769123,93851.0,93850.0,5.4e-07]
[1736422000556,0.77098776,93851.0,93850.0,5.4e-07]
[1736422001698,0.163,93851.0,93850.0,5.4e-07]
[1736422001853,0.013,93851.0,93850.0,0.08230054]
[1736422002486,0.013,93851.0,93850.0,0.13200054]
[1736422002682,0.004,93851.0,93850.0,0.13200054]
[1736422002930,0.14365099,93857.0,93853.0,0.00031744]
[1736422003126,0.14365099,93857.0,93854.0,0.0826]
[1736422003537,0.213078,93863.0,93854.0,0.0826]
[1736422003538,0.23351966,93860.0,93854.0,0.0826]
[1736422003734,0.15,93859.0,93854.0,0.0826]
[1736422004351,0.009,93857.0,93854.0,0.0826]
[1736422005576,0.15,93859.0,93854.0,0.0826]
[1736422006065,0.009,93859.0,93858.0,0.07701744]
[1736422006215,0.213079,93862.0,93858.0,0.07701744]
[1736422007222,0.009,93859.0,93858.0,0.07701744]
[1736422007606,0.213079,93862.0,93858.0,0.07701744]
[1736422008194,0.001,93859.0,93858.0,0.07701744]
[1736422008807,0.213079,93862.0,93858.0,0.07701744]
[1736422009035,0.011,93862.0,93858.0,0.07701744]
[1736422009249,0.002,93862.0,93858.0,0.07701744]
[1736422009654,0.213078,93863.0,93858.0,0.07701744]
[1736422009858,0.001,93859.0,93858.0,0.07701744]
[1736422010035,0.01,93859.0,93858.0,0.07701744]
[1736422010465,0.001,93859.0,93858.0,0.07701744]
[1736422010670,0.214085,93859.0,93858.0,0.07701744]
[1736422010867,0.001,93859.0,93858.0,0.07701744]
[1736422011466,0.009,93862.0,93858.0,0.07701744]
[1736422011666,0.213081,93861.0,93858.0,0.07701744]
[1736422011863,0.011,93862.0,93858.0,0.07701744]
[1736422012069,0.002,93862.0,93858.0,0.07701744]
[1736422012463,0.23155948,93866.0,93858.0,0.07701744]
[1736422012858,0.009,93859.0,93858.0,0.07701744]
[1736422013083,0.002,93861.0,93858.0,0.07701744]
[1736422013300,0.002,93861.0,93860.0,0.00031744]
[1736422013503,0.002,93861.0,93860.0,0.1818172]
[1736422014598,0.01903578,93867.0,93860.0,0.1818172]
[1736422014832,0.003,93866.0,93861.0,0.10429976]
[1736422015496,0.213064,93869.0,93861.0,0.10429976]
[1736422015906,0.009,93867.0,93861.0,0.10429976]
[1736422016280,0.213064,93869.0,93861.0,0.10429976]
[1736422016490,0.003,93866.0,93861.0,0.10429976]
[1736422016698,0.012,93866.0,93861.0,0.10429976]
[1736422017112,0.003,93866.0,93861.0,0.10429976]
[1736422017257,0.05914437,93866.0,93861.0,0.10429976]
[1736422017857,0.05614437,93866.0,93861.0,0.10429976]
[1736422018408,0.05614437,93866.0,93860.0,0.0772]
[1736422018409,0.213081,93861.0,93860.0,0.0772]
[1736422018573,0.05614437,93866.0,93860.0,0.0772]
[1736422018773,0.21308,93862.0,93860.0,0.0772]
[1736422019804,0.009,93861.0,93860.0,0.0772]
[1736422020209,0.21308,93862.0,93860.0,0.0772]
[1736422021429,0.21508,93862.0,93860.0,0.0772]
[1736422021633,0.22408,93862.0,93860.0,0.0772]
[1736422022039,0.22408,93862.0,93860.0,0.0722]
[1736422022233,0.0437151,93861.0,93860.0,0.0722]
[1736422023157,0.22408,93862.0,93860.0,0.0722]
[1736422023359,0.21508,93862.0,93860.0,0.0722]
[1736422024259,0.21308,93862.0,93860.0,0.0722]
[1736422024663,0.011,93861.0,93860.0,0.0722]
[1736422025023,0.21308,93862.0,93860.0,0.0722]
[1736422025242,0.2556951,93862.0,93860.0,0.0722]
[1736422025484,0.28588759,93862.0,93860.0,0.0722]
[1736422025663,0.27688759,93862.0,93860.0,0.0722]
[1736422025858,0.009,93861.0,93860.0,0.0722]
[1736422026205,0.27688759,93862.0,93860.0,0.0722]
[1736422026412,0.04899586,93861.0,93860.0,0.0722]
[1736422027773,0.05099586,93861.0,93860.0,0.0722]
[1736422028183,0.05999586,93861.0,93860.0,0.0722]
[1736422031608,0.011,93861.0,93860.0,0.0722]
[1736422034022,0.213092,93856.0,93854.0,0.0762]
[1736422034244,0.213092,93856.0,93850.0,5.4e-07]
[1736422034245,0.213103,93851.0,93850.0,5.4e-07]
[1736422035328,0.213094,93855.0,93850.0,5.4e-07]
[1736422035573,0.20102502,93856.0,93850.0,5.4e-07]
[1736422035922,3.10540375,93855.0,93850.0,5.4e-07]
[1736422036094,0.02202175,93855.0,93850.0,5.4e-07]
[1736422036395,0.009,93851.0,93850.0,5.4e-07]
[1736422036809,0.222103,93851.0,93850.0,5.4e-07]
[1736422037516,0.213103,93851.0,93850.0,5.4e-07]
[1736422038503,0.29118382,93851.0,93850.0,5.4e-07]
[1736422038693,0.30018382,93851.0,93850.0,5.4e-07]
[1736422039539,0.27702758,93851.0,93850.0,5.4e-07]
[1736422039714,0.29391713,93851.0,93850.0,5.4e-07]
[1736422039924,0.22999255,93851.0,93850.0,5.4e-07]
[1736422041584,0.23999255,93851.0,93850.0,5.4e-07]
[1736422041788,0.23099255,93851.0,93850.0,5.4e-07]
[1736422041963,0.23999255,93851.0,93850.0,5.4e-07]
[1736422042750,0.23099255,93851.0,93850.0,5.4e-07]
[1736422043130,0.23999255,93851.0,93850.0,5.4e-07]
[1736422043332,0.23899255,93851.0,93850.0,5.4e-07]
[1736422044224,0.30330391,93851.0,93850.0,5.4e-07]
[1736422044433,0.31746102,93851.0,93850.0,5.4e-07]
[1736422044599,0.45846102,93851.0,93850.0,5.4e-07]
[1736422045374,0.46746102,93851.0,93850.0,5.4e-07]
[1736422045576,0.45846102,93851.0,93850.0,5.4e-07]
[1736422046011,0.46746102,93851.0,93850.0,5.4e-07]
[1736422047008,0.46846102,93851.0,93850.0,5.4e-07]
[1736422047416,0.38899255,93851.0,93850.0,5.4e-07]
[1736422047652,0.17588955,93851.0,93850.0,5.4e-07]
[1736422047878,0.01788955,93851.0,93850.0,5.4e-07]
[1736422048105,0.02688955,93851.0,93850.0,5.4e-07]
[1736422048330,0.02688955,93851.0,93850.0,0.22601774]
[1736422048331,0.009,93851.0,93850.0,0.22601774]
[1736422048534,0.01,93851.0,93850.0,0.22601774]
[1736422048933,0.001,93851.0,93850.0,0.22601774]
[1736422049109,0.01,93851.0,93850.0,0.22601774]
[1736422049981,0.009,93851.0,93850.0,0.22601774]
[1736422052114,0.009,93851.0,93850.0,0.2257003]
[1736422052326,0.009,93851.0,93850.0,0.12140054]
[1736422052540,0.009,93851.0,93850.0,0.12171798]
[1736422056849,0.009,93851.0,93850.0,0.07640054]
[1736422057060,0.02457952,93851.0,93850.0,0.07640054]
[1736422057274,0.009,93851.0,93850.0,0.07640054]
[1736422057641,0.009,93851.0,93850.0,5.4e-07]
[1736422057799,0.031209,93851.0,93850.0,5.4e-07]
[1736422057999,0.009,93851.0,93850.0,5.4e-07]
[1736422059484,0.009,93851.0,93850.0,0.40042374]
[1736422059735,0.009,93851.0,93850.0,0.44682374]